bitfinex/quotes_BTCUSD_20251113
["timestamp","ask_amount","ask_price","bid_price","bid_amount"]
[1763048816004,0.27591492,101510.0,101500.0,7.7835269]
[1763048816240,0.27291492,101510.0,101500.0,7.7835269]
[1763048816465,0.27242492,101510.0,101500.0,7.7835269]
[1763048816693,0.0694,101510.0,101500.0,7.7835269]
[1763048816908,0.0714,101510.0,101500.0,7.7835269]
[1763048817160,0.0734,101510.0,101500.0,7.98057123]
[1763048817378,0.27042492,101510.0,101500.0,7.7835269]
[1763048817596,0.27091492,101510.0,101500.0,7.7835269]
[1763048817813,0.77480128,101510.0,101500.0,7.7835269]
[1763048818043,3.15890794,101510.0,101500.0,7.75392309]
[1763048818485,3.15690794,101510.0,101500.0,7.75392309]
[1763048818919,3.18231719,101510.0,101500.0,7.75392309]
[1763048819142,3.15590794,101510.0,101500.0,7.75392309]
[1763048819362,3.15790794,101510.0,101500.0,7.75392309]
[1763048819586,3.1144892,101510.0,101500.0,7.75392309]
[1763048820051,2.64184542,101510.0,101500.0,7.75392309]
[1763048820293,2.68526416,101510.0,101500.0,7.75392309]
[1763048820508,3.18915052,101510.0,101500.0,7.75392309]
[1763048820981,3.53112877,101510.0,101500.0,7.07783303]
[1763048821199,3.54998327,101510.0,101500.0,6.69825703]
[1763048821425,3.57687649,101510.0,101500.0,6.46883976]
[1763048821666,3.57687649,101510.0,101500.0,6.36999865]
[1763048821667,2.94101187,101510.0,101500.0,6.36999865]
[1763048821902,3.2718862,101510.0,101500.0,6.36999865]
[1763048822116,2.60260284,101510.0,101500.0,6.36999865]
[1763048822347,3.23846746,101510.0,101500.0,6.36999865]
[1763048822564,3.30736257,101510.0,101500.0,6.36999865]
[1763048822793,3.2818862,101510.0,101500.0,6.36999865]
[1763048823023,3.31623918,101510.0,101500.0,5.91816129]
[1763048823252,3.31623918,101510.0,101500.0,5.63042728]
[1763048823506,2.86489818,101510.0,101500.0,5.63042728]
[1763048823729,3.5007628,101510.0,101500.0,5.63042728]
[1763048824175,3.53915583,101510.0,101500.0,4.91209824]
[1763048824392,3.53915583,101510.0,101500.0,4.76668115]
[1763048824607,3.64275583,101510.0,101500.0,4.44107326]
[1763048824832,3.53915583,101510.0,101500.0,4.41146934]
[1763048825039,3.53915583,101510.0,101500.0,3.99990912]
[1763048825254,3.55962109,101510.0,101500.0,3.73678516]
[1763048825467,3.58651431,101510.0,101500.0,3.48866126]
[1763048825695,3.61129295,101510.0,101500.0,3.29991896]
[1763048825908,3.62247536,101510.0,101500.0,3.20683941]
[1763048826144,3.62247536,101510.0,101500.0,2.36209066]
[1763048826362,0.59706375,101490.0,101480.0,0.0217465]
[1763048826577,0.59706375,101490.0,101420.0,0.20705974]
[1763048826578,0.20730495,101430.0,101420.0,0.20705974]
[1763048827006,0.18730495,101430.0,101420.0,0.20705974]
[1763048827224,0.18730495,101440.0,101420.0,0.20705974]
[1763048827454,0.20730495,101440.0,101430.0,0.19718032]
[1763048827671,0.18730495,101430.0,101410.0,1.03619457]
[1763048827897,0.18730495,101430.0,101420.0,0.19719976]
[1763048828137,0.22412495,101420.0,101410.0,0.19325069]
[1763048828392,0.03731,101420.0,101410.0,0.00594574]
[1763048828672,0.12600522,101420.0,101410.0,0.00594574]
[1763048828915,0.01979992,101410.0,101390.0,0.83310727]
[1763048829149,0.11136992,101410.0,101380.0,0.84296984]
[1763048829365,0.01979992,101400.0,101380.0,0.20710522]
[1763048829593,0.0475,101390.0,101370.0,0.63586462]
[1763048829848,0.0475,101390.0,101370.0,0.19729638]
[1763048830064,0.15886992,101390.0,101370.0,0.19729638]
[1763048830499,0.15886992,101390.0,101370.0,0.19729632]
[1763048830709,0.15886992,101390.0,101360.0,0.25554131]
[1763048830926,0.15886992,101390.0,101380.0,0.19727756]
[1763048831148,0.13234992,101390.0,101380.0,0.19727756]
[1763048831366,0.11136992,101400.0,101380.0,0.19727756]
[1763048831575,0.11136992,101400.0,101380.0,0.19727699]
[1763048832003,0.11255,101390.0,101370.0,0.19729675]
[1763048832233,0.15886992,101390.0,101370.0,0.19729697]
[1763048832474,0.15886992,101390.0,101370.0,0.19729692]
[1763048832475,0.06729992,101390.0,101370.0,0.19729692]
[1763048832689,0.0475,101390.0,101380.0,0.19727756]
[1763048832906,0.0475,101390.0,101370.0,0.19729692]
[1763048833121,0.13907,101390.0,101360.0,0.25554131]
[1763048833345,0.15886992,101390.0,101370.0,0.1972936]
[1763048833563,0.15886992,101390.0,101360.0,0.30939131]
[1763048833802,0.15886992,101390.0,101360.0,0.25554131]
[1763048834022,0.15886992,101390.0,101370.0,0.19729589]
[1763048834450,0.0475,101390.0,101370.0,0.19729589]
[1763048834669,0.13907,101390.0,101360.0,0.25554131]
[1763048835157,0.09157,101380.0,101360.0,0.25554131]
[1763048835365,0.13907,101390.0,101370.0,0.19729703]
[1763048836012,0.13907,101390.0,101360.0,0.25554131]
[1763048836224,0.15886992,101390.0,101360.0,0.25554131]
[1763048836469,0.11236992,101380.0,101360.0,0.20718131]
[1763048836680,0.09257,101380.0,101360.0,0.20718131]
[1763048836899,0.001,101380.0,101370.0,0.94086165]
[1763048837114,0.001,101380.0,101370.0,0.30499703]
[1763048837763,0.05661992,101420.0,101400.0,0.19723865]
[1763048837974,0.05458401,101420.0,101400.0,0.19723865]
[1763048838184,0.06505,101410.0,101390.0,0.20710945]
[1763048838397,0.05661992,101420.0,101410.0,0.1972192]
[1763048838622,0.0475,101430.0,101420.0,0.19719976]
[1763048838854,0.01779556,101430.0,101420.0,0.94076438]
[1763048839090,0.04053,101450.0,101420.0,0.05385]
[1763048839091,0.06032992,101450.0,101420.0,0.05385]
[1763048839308,0.16969844,101450.0,101420.0,0.26090559]
[1763048839520,0.05832852,101450.0,101430.0,0.02692]
[1763048839743,0.01779852,101450.0,101430.0,0.85996384]
[1763048839968,0.01779852,101450.0,101430.0,0.22409725]
[1763048840201,0.001,101430.0,101420.0,0.20705559]
[1763048840439,0.02079992,101430.0,101420.0,0.19719976]
[1763048840648,0.001,101430.0,101420.0,0.19719976]
[1763048841535,0.001,101430.0,101410.0,0.02692]
[1763048841536,0.15662,101430.0,101410.0,0.02692]
[1763048841753,0.0475,101420.0,101410.0,0.02692]
[1763048841970,0.0475,101440.0,101410.0,0.22315842]
[1763048842200,0.1569024,101440.0,101420.0,0.19719934]
[1763048842417,0.17670232,101440.0,101420.0,0.19719686]
[1763048842640,0.17670232,101440.0,101420.0,0.19719836]
[1763048843278,0.17670232,101440.0,101430.0,0.19718032]
[1763048843517,0.2219524,101440.0,101420.0,0.19719836]
[1763048843736,0.2219524,101440.0,101430.0,0.19718032]
[1763048843737,0.0663324,101440.0,101430.0,0.19718032]
[1763048844647,0.0683324,101440.0,101420.0,0.19719836]
[1763048844875,0.0555,101430.0,101410.0,0.20707938]
[1763048845098,0.0178324,101430.0,101420.0,0.19719976]
[1763048845334,0.17970232,101440.0,101420.0,0.19719976]
[1763048845596,0.17670232,101440.0,101420.0,0.19719879]
[1763048845811,0.17641992,101430.0,101410.0,0.02594]
[1763048846031,0.0178324,101430.0,101420.0,0.19719976]
[1763048846271,0.17770232,101440.0,101420.0,0.19719976]
[1763048846495,0.17641992,101430.0,101410.0,0.23301885]
[1763048846718,0.1744524,101430.0,101410.0,0.23301885]
[1763048847166,0.1744524,101430.0,101410.0,0.22315904]
[1763048847383,0.0178324,101430.0,101420.0,0.19719976]
[1763048847610,0.001,101430.0,101420.0,0.25006976]
[1763048847846,0.0188324,101430.0,101420.0,0.93880438]
[1763048848115,0.001,101430.0,101420.0,1.26180438]
[1763048848345,0.15330992,101470.0,101440.0,0.1971539]
[1763048848557,0.1801601,101470.0,101450.0,0.19714087]
[1763048848992,0.05984012,101470.0,101460.0,0.19712201]
[1763048849741,0.05984012,101470.0,101430.0,0.89575174]
[1763048849742,0.21646012,101470.0,101430.0,0.89575174]
[1763048849959,0.23926004,101470.0,101450.0,0.19714071]
[1763048850171,0.06284012,101470.0,101450.0,0.19714071]
[1763048850392,0.06284012,101470.0,101460.0,0.19712201]
[1763048850609,0.14366004,101470.0,101440.0,0.84288342]
[1763048850855,0.34076347,101470.0,101440.0,0.84288342]
[1763048851077,0.33676347,101470.0,101440.0,0.2070188]
[1763048851291,0.33676347,101470.0,101430.0,0.20701712]
[1763048851292,0.04919,101450.0,101430.0,0.20701712]
[1763048851510,0.06709012,101450.0,101430.0,0.20701712]
[1763048851956,0.06709012,101450.0,101420.0,1.21879436]
[1763048852176,0.36319224,101450.0,101420.0,0.20705974]
[1763048852400,0.28403216,101450.0,101420.0,0.19719808]
[1763048852609,0.31592162,101440.0,101430.0,0.003]
[1763048852822,0.39054174,101440.0,101430.0,0.003]
[1763048853032,0.39054174,101440.0,101430.0,0.001]
[1763048853255,0.19338004,101440.0,101430.0,0.001]
[1763048853458,0.17358012,101440.0,101430.0,0.001]
[1763048853669,0.01790012,101440.0,101430.0,0.19818032]
[1763048853887,0.01790012,101440.0,101430.0,0.19718032]
[1763048854094,0.01790012,101440.0,101420.0,0.19819783]
[1763048854303,0.01790012,101440.0,101430.0,0.19718032]
[1763048854747,0.19781004,101440.0,101420.0,0.19819783]
[1763048854947,0.19981004,101440.0,101420.0,0.19819939]
[1763048855156,0.19981004,101440.0,101430.0,0.19718032]
[1763048855368,0.08205012,101440.0,101420.0,0.19719939]
[1763048855598,0.02090012,101440.0,101420.0,0.19719939]
[1763048855841,0.01990012,101440.0,101430.0,0.19718032]
[1763048856276,0.02090012,101440.0,101420.0,0.19719939]
[1763048856498,0.16011,101430.0,101410.0,0.2231574]
[1763048856718,0.01790012,101430.0,101410.0,0.23301836]
[1763048856953,0.01790012,101430.0,101410.0,0.22315759]
[1763048856954,0.11686012,101430.0,101410.0,0.22315759]
[1763048857219,0.13666004,101430.0,101420.0,0.19719976]
[1763048857442,0.01790012,101430.0,101420.0,0.19719976]
[1763048857663,0.01790012,101430.0,101410.0,0.85902221]
[1763048857877,0.01790012,101430.0,101410.0,0.22315759]
[1763048858100,0.06115,101420.0,101410.0,0.19721883]
[1763048858317,0.07905012,101420.0,101410.0,0.1972192]
[1763048858539,0.01790012,101420.0,101410.0,0.2760292]
[1763048858764,0.01790012,101420.0,101410.0,0.96576382]
[1763048858994,0.01790012,101420.0,101410.0,0.2770292]
[1763048858995,0.01794303,101420.0,101410.0,0.2770292]
[1763048859208,0.01794303,101420.0,101410.0,0.2231592]
[1763048859670,0.01794303,101420.0,101410.0,0.86002382]
[1763048859901,0.17805303,101420.0,101410.0,0.001]
[1763048860119,0.39505271,101420.0,101410.0,0.001]
[1763048860339,1.03085471,101420.0,101410.0,0.001]
[1763048860557,0.2067598,101420.0,101410.0,0.001]
[1763048860783,0.40395956,101420.0,101410.0,0.001]
[1763048861407,0.38515964,101420.0,101390.0,0.20712081]
[1763048861623,0.09896,101410.0,101400.0,0.19723865]
[1763048861840,0.01979992,101400.0,101370.0,0.8429391]
[1763048862063,0.09164,101380.0,101360.0,0.66278462]
[1763048862304,0.09164,101380.0,101370.0,0.19729703]
[1763048862566,0.03049,101380.0,101370.0,0.19729703]
[1763048862790,0.14924992,101400.0,101380.0,0.19727756]
[1763048863030,0.15821694,101400.0,101380.0,0.19727667]
[1763048863281,0.15821694,101400.0,101380.0,0.19727546]
[1763048863507,0.16011,101390.0,101370.0,0.8430265]
[1763048863954,0.16011,101390.0,101380.0,0.19727756]
[1763048864175,0.06115,101390.0,101380.0,0.19727756]
[1763048864397,0.20959514,101390.0,101380.0,0.19727756]
[1763048864619,0.17990992,101390.0,101380.0,0.19727756]
[1763048864880,0.20959514,101390.0,101380.0,0.19727756]
[1763048865112,0.21059514,101390.0,101380.0,0.19727756]
[1763048865339,0.17990992,101390.0,101370.0,0.8430265]
[1763048865555,0.20959514,101390.0,101370.0,0.8430265]
[1763048865786,0.11163514,101390.0,101380.0,0.19727756]
[1763048866009,0.12964522,101390.0,101370.0,0.20716188]
[1763048866225,0.17990992,101380.0,101370.0,0.20716188]
[1763048866472,0.03068522,101390.0,101370.0,0.20716188]
[1763048866473,0.12964522,101390.0,101370.0,0.20716188]
[1763048866695,0.11975992,101390.0,101370.0,0.20716188]
[1763048866913,0.11875992,101390.0,101370.0,0.20716188]
[1763048867134,0.11875992,101390.0,101380.0,0.19727756]
[1763048867353,0.21059514,101390.0,101370.0,0.8430265]
[1763048867541,0.18090992,101390.0,101380.0,0.19727756]
[1763048867790,0.03068522,101390.0,101360.0,0.20718031]
[1763048868013,0.08094992,101380.0,101360.0,0.19731449]
[1763048868225,0.06115,101370.0,101360.0,0.19731449]
[1763048868453,0.06115,101370.0,101360.0,0.83318111]
[1763048868710,0.11875992,101380.0,101370.0,0.19729703]
[1763048868711,0.04948514,101380.0,101370.0,0.19729703]
[1763048868933,0.01979992,101390.0,101380.0,0.19727756]
[1763048869151,0.05028992,101400.0,101390.0,0.19725811]
[1763048869403,0.05028992,101400.0,101390.0,0.83312273]
[1763048869404,0.03049,101400.0,101390.0,0.83312273]
[1763048869617,0.10896,101420.0,101400.0,0.19723865]
[1763048869837,0.10896,101420.0,101410.0,0.1972192]
[1763048870057,0.30616019,101420.0,101390.0,0.84298563]
[1763048870270,0.10896,101420.0,101400.0,0.19723515]
[1763048870498,0.06115,101400.0,101390.0,0.20712101]
[1763048870716,0.002,101400.0,101390.0,0.20712101]
[1763048871376,0.35735145,101400.0,101370.0,0.26003188]
[1763048871604,0.03988,101390.0,101380.0,0.19727606]
[1763048871813,0.06215,101400.0,101390.0,0.19725811]
[1763048872026,0.05019,101400.0,101390.0,0.19725811]
[1763048872443,0.11134,101400.0,101380.0,0.83314218]
[1763048872615,0.11134,101400.0,101390.0,0.19725811]
[1763048872829,0.01979992,101390.0,101370.0,0.8430265]
[1763048873448,0.01979992,101390.0,101380.0,0.19727756]
[1763048873449,0.11875992,101390.0,101380.0,0.19727756]
[1763048873650,0.11875992,101390.0,101380.0,0.83314218]
[1763048874111,0.17990992,101390.0,101370.0,0.83316075]
[1763048874306,0.08094992,101390.0,101380.0,0.19727756]
[1763048874517,0.06115,101390.0,101380.0,0.19727756]
[1763048874743,0.16794992,101400.0,101380.0,0.83314218]
[1763048875011,0.06713395,101400.0,101390.0,0.83312273]
[1763048875229,0.06713395,101400.0,101390.0,0.19725811]
[1763048875450,0.04919,101400.0,101390.0,0.19725811]
[1763048875906,0.04919,101400.0,101380.0,0.83314218]
[1763048876113,0.04919,101400.0,101390.0,0.19725811]
[1763048877138,0.20706069,101420.0,101400.0,0.19723865]
[1763048877139,0.01979992,101420.0,101400.0,0.19723865]
[1763048877361,0.01795444,101420.0,101410.0,0.22315853]
[1763048877800,0.01795444,101420.0,101400.0,0.19723834]
[1763048877801,0.39506569,101420.0,101400.0,0.19723834]
[1763048878038,0.001,101400.0,101390.0,0.86892563]
[1763048878466,0.001,101400.0,101390.0,0.02594]
[1763048878690,0.11875992,101410.0,101390.0,0.22319669]
[1763048878947,0.11875992,101410.0,101390.0,0.22319807]
[1763048879178,0.02279992,101420.0,101400.0,0.19723635]
[1763048879407,0.13873009,101420.0,101400.0,0.19723635]
[1763048879618,0.33593155,101420.0,101390.0,0.92179559]
[1763048879838,0.09676,101410.0,101390.0,0.23306097]
[1763048880056,0.09676,101410.0,101390.0,0.86892559]
[1763048880327,0.29397947,101410.0,101390.0,0.66180462]
[1763048880541,0.06232,101400.0,101380.0,0.19727035]
[1763048880758,0.06232,101400.0,101370.0,0.8430256]
[1763048880759,0.10323,101390.0,101370.0,0.8430256]
[1763048880974,0.10323,101390.0,101370.0,0.50656039]
[1763048881189,0.04091,101390.0,101380.0,0.19727756]
[1763048881418,0.04901,101400.0,101380.0,0.80957795]
[1763048881628,0.09676,101420.0,101400.0,0.19723865]
[1763048881843,0.0179863,101420.0,101410.0,0.02594]
[1763048882060,0.13454622,101420.0,101400.0,0.70379904]
[1763048882277,0.03778622,101420.0,101410.0,0.2231592]
[1763048882499,0.1770663,101420.0,101390.0,0.50656039]
[1763048882731,0.1770663,101420.0,101390.0,0.19725648]
[1763048882732,0.06087992,101410.0,101390.0,0.19725648]
[1763048882955,0.14595,101430.0,101410.0,0.2231592]
[1763048883183,0.06718978,101430.0,101410.0,0.2760292]
[1763048883396,0.15908,101420.0,101390.0,0.20711938]
[1763048883606,0.39607967,101420.0,101400.0,0.19723838]
[1763048883806,0.002,101420.0,101410.0,0.02594]
[1763048884027,0.15595,101430.0,101410.0,0.2231592]
[1763048884257,0.001,101420.0,101410.0,0.2231592]
[1763048884483,0.002,101430.0,101420.0,0.30293976]
[1763048884722,0.01979992,101460.0,101440.0,0.19715188]
[1763048884936,0.02,101480.0,101450.0,0.26705851]
[1763048885164,0.08703346,101480.0,101450.0,0.39244128]
[1763048885388,0.27397238,101480.0,101450.0,0.04504]
[1763048885621,0.78053277,101480.0,101450.0,0.24217103]
[1763048885840,2.197103,101470.0,101440.0,0.34713992]
[1763048886056,0.07476,101460.0,101440.0,0.25693992]
[1763048886498,0.24666237,101450.0,101420.0,0.19719976]
[1763048886714,0.07426,101440.0,101430.0,0.19718032]
[1763048886933,0.07426,101440.0,101420.0,0.19719976]
[1763048887361,0.05002,101450.0,101430.0,0.19718032]
[1763048887574,0.08801783,101450.0,101430.0,0.19718032]
[1763048888072,0.08801783,101450.0,101410.0,0.32678016]
[1763048888073,0.84743088,101450.0,101410.0,0.32678016]
[1763048888285,0.08320783,101450.0,101430.0,0.19717752]
[1763048888494,0.14172783,101450.0,101440.0,0.19716088]
[1763048888931,0.02,101460.0,101450.0,0.19714144]
[1763048889152,0.07852,101470.0,101450.0,0.19714144]
[1763048889368,0.07852,101470.0,101460.0,0.19712201]
[1763048889369,0.01797903,101470.0,101460.0,0.19712201]
[1763048889597,0.01797903,101470.0,101440.0,0.19716088]
[1763048889598,0.003,101450.0,101440.0,0.19716088]
[1763048889817,0.003,101450.0,101440.0,0.79748127]
[1763048890038,0.001,101450.0,101440.0,0.77035127]
[1763048890474,0.001,101450.0,101440.0,0.35755088]
[1763048890696,0.001,101450.0,101440.0,0.86411127]
[1763048890909,0.22695833,101470.0,101440.0,0.35755088]
[1763048891127,0.001,101450.0,101440.0,0.35755088]
[1763048891353,0.24394197,101450.0,101420.0,0.20702769]
[1763048891570,0.32188197,101450.0,101420.0,0.30078769]
[1763048891793,0.00058,101430.0,101410.0,0.02594]
[1763048892054,0.24675042,101420.0,101390.0,0.79752747]
[1763048892274,0.24675042,101420.0,101390.0,0.19720708]
[1763048892275,0.02,101410.0,101390.0,0.19720708]
[1763048892492,0.02,101410.0,101400.0,0.19723865]
[1763048892757,0.02,101410.0,101380.0,0.25210538]
[1763048892964,0.08228,101410.0,101380.0,0.75866577]
[1763048893188,0.19724063,101400.0,101380.0,0.04504]
[1763048893414,0.04587,101390.0,101370.0,0.19717095]
[1763048893661,0.26313026,101390.0,101360.0,0.85731941]
[1763048893899,0.32852026,101390.0,101360.0,0.85731941]
[1763048894127,0.32851883,101390.0,101370.0,0.19729406]
[1763048894368,0.02,101380.0,101360.0,0.29107468]
[1763048894582,0.08604,101380.0,101370.0,0.19729703]
[1763048894796,0.08604,101380.0,101360.0,0.19731468]
[1763048895005,0.08604,101380.0,101360.0,0.19731568]
[1763048895119,0.02,101380.0,101370.0,0.19729703]
[1763048895557,0.04521,101390.0,101380.0,0.19727756]
[1763048895801,0.11125,101390.0,101370.0,0.19729703]
[1763048896027,0.13325,101390.0,101380.0,0.19727756]
[1763048896313,0.02156,101400.0,101380.0,0.21919756]
[1763048896514,0.13102,101400.0,101380.0,0.21919756]
[1763048896830,0.002,101390.0,101380.0,0.21919756]
[1763048897243,0.002,101390.0,101380.0,0.37958756]
[1763048897447,0.002,101390.0,101380.0,0.88614795]
[1763048897878,0.27227065,101420.0,101390.0,0.19724314]
[1763048898078,0.10879,101410.0,101390.0,0.19725488]
[1763048898654,0.02,101410.0,101390.0,0.19725488]
[1763048898864,0.002,101400.0,101390.0,0.79757527]
[1763048899077,0.002,101400.0,101390.0,0.86420527]
[1763048899225,0.06721,101420.0,101410.0,0.1972192]
[1763048899405,0.06519892,101420.0,101410.0,0.1972192]
[1763048899614,0.002,101420.0,101410.0,0.2471492]
[1763048899824,0.002,101420.0,101410.0,0.91409959]
[1763048900307,0.02,101440.0,101420.0,0.19718095]
[1763048900427,0.30595115,101440.0,101410.0,0.41739996]
[1763048900655,0.03798581,101440.0,101430.0,0.19718032]
[1763048900866,0.04521,101450.0,101440.0,0.19716088]
[1763048900867,0.06521,101450.0,101440.0,0.19716088]
[1763048901073,0.29574957,101470.0,101440.0,0.24709088]
[1763048901301,0.10678171,101470.0,101450.0,0.19714013]
[1763048901507,0.10678171,101470.0,101460.0,0.19712201]
[1763048901508,0.01799171,101470.0,101460.0,0.19712201]
[1763048901962,0.1578,101480.0,101460.0,0.19712201]
[1763048902191,0.1757921,101480.0,101460.0,0.19712201]
[1763048902397,0.0870021,101480.0,101460.0,0.19712201]
[1763048902839,0.0179921,101480.0,101470.0,0.24703259]
[1763048903086,0.02,101490.0,101480.0,0.19708284]
[1763048903294,0.01797964,101490.0,101480.0,0.70364323]
[1763048903501,0.79310576,101500.0,101470.0,0.04993]
[1763048903713,0.31452912,101500.0,101470.0,0.24703163]
[1763048903924,0.81108951,101500.0,101470.0,0.24702682]
[1763048904142,0.30656465,101490.0,101470.0,0.04993]
[1763048904359,0.26318355,101480.0,101450.0,0.20699523]
[1763048904572,0.15471,101480.0,101460.0,0.19712187]
[1763048904780,0.15471,101480.0,101450.0,0.80731562]
[1763048904781,0.3517951,101480.0,101450.0,0.80731562]
[1763048904992,0.26318713,101480.0,101450.0,0.30075523]
[1763048905234,0.28660261,101470.0,101440.0,0.25694892]
[1763048905462,0.21710517,101470.0,101450.0,0.19713665]
[1763048905741,0.21710517,101470.0,101440.0,0.85726931]
[1763048905967,0.21710332,101470.0,101450.0,0.09376]
[1763048906166,0.30660332,101470.0,101440.0,0.35070892]
[1763048906378,0.30660332,101470.0,101440.0,0.04993]
[1763048906379,0.30662218,101460.0,101440.0,0.04993]
[1763048906603,0.24324144,101450.0,101420.0,0.29095849]
[1763048906824,0.24324144,101450.0,101420.0,0.19719854]
[1763048906825,0.84841183,101450.0,101420.0,0.19719854]
[1763048907050,0.02,101440.0,101420.0,0.19719854]
[1763048907462,0.33096144,101450.0,101420.0,0.30081852]
[1763048907675,0.33096144,101450.0,101430.0,0.19717996]
[1763048907676,0.15382,101450.0,101430.0,0.19717996]
[1763048907889,0.022,101450.0,101440.0,0.02692]
[1763048908164,0.0424,101450.0,101430.0,0.14369]
[1763048908412,0.85624362,101450.0,101420.0,0.20705852]
[1763048908643,0.0604,101450.0,101440.0,0.19716088]
[1763048908856,0.64327039,101450.0,101430.0,0.19717878]
[1763048909077,0.14671,101450.0,101430.0,0.19717554]
[1763048909290,0.14671,101450.0,101420.0,0.30081852]
[1763048909291,0.34185703,101450.0,101420.0,0.29095953]
[1763048909519,0.25235264,101450.0,101430.0,0.19718007]
[1763048909743,0.19716194,101440.0,101420.0,0.29095815]
[1763048909946,0.19716194,101440.0,101410.0,0.25688361]
[1763048909947,0.30666194,101440.0,101410.0,0.25688361]
[1763048910377,0.30666194,101440.0,101420.0,0.1971991]
[1763048910591,0.00089,101430.0,101410.0,0.20695361]
[1763048910857,0.81324229,101430.0,101400.0,0.20701037]
[1763048911068,0.26228007,101420.0,101400.0,0.04731]
[1763048911242,0.15383,101420.0,101400.0,0.24454604]
[1763048911392,0.35103012,101420.0,101390.0,0.34657754]
[1763048911593,0.06508,101420.0,101410.0,0.1972192]
[1763048911807,0.43263,101440.0,101420.0,0.1971991]
[1763048912006,1.15431811,101440.0,101410.0,0.20708016]
[1763048912321,0.06508,101420.0,101410.0,0.1972192]
[1763048912882,0.06608,101420.0,101400.0,0.20710009]
[1763048913092,0.06698,101420.0,101400.0,0.20710009]
[1763048913301,0.26417993,101420.0,101400.0,0.20710009]
[1763048913756,0.06698,101420.0,101400.0,0.20710009]
[1763048913967,0.06608,101420.0,101410.0,0.1982192]
[1763048914087,0.021,101420.0,101410.0,0.1982192]
[1763048914292,0.021,101420.0,101410.0,0.1972192]
[1763048914536,0.02,101420.0,101410.0,0.1972192]
[1763048914938,0.25220962,101450.0,101430.0,0.19717724]
[1763048914939,0.04521,101450.0,101430.0,0.19717724]
[1763048915141,0.04521,101450.0,101420.0,0.84404039]
[1763048915142,0.36995272,101450.0,101420.0,0.84404039]
[1763048915294,0.87651311,101450.0,101420.0,0.32762965]
[1763048915501,0.85651311,101450.0,101420.0,0.32762965]
[1763048915695,0.02,101440.0,101420.0,0.23541965]
[1763048915899,0.04521,101450.0,101430.0,0.19718032]
[1763048916115,0.03797031,101450.0,101440.0,0.22671088]
[1763048916350,0.24234064,101480.0,101450.0,0.19714118]
[1763048916351,0.02,101460.0,101450.0,0.19714118]
[1763048916542,0.03797126,101460.0,101450.0,0.19714118]
[1763048916753,0.01797126,101460.0,101450.0,0.35164118]
[1763048916958,0.01797126,101460.0,101450.0,0.25943144]
[1763048917175,0.02,101470.0,101460.0,0.19712201]
[1763048917389,0.02,101470.0,101440.0,0.23656892]
[1763048917390,0.001,101450.0,101440.0,0.23656892]
[1763048917589,0.001,101450.0,101440.0,0.32877892]
[1763048917802,0.001,101450.0,101440.0,0.89762931]
[1763048918021,0.21710339,101470.0,101450.0,0.19714012]
[1763048918230,0.03896482,101470.0,101460.0,0.19712201]
[1763048918716,0.03896482,101470.0,101450.0,0.28935012]
[1763048918924,0.23606792,101470.0,101440.0,0.74312931]
[1763048919076,0.03896482,101470.0,101450.0,0.19714027]
[1763048919279,0.04096482,101470.0,101450.0,0.19713957]
[1763048919483,0.03796482,101470.0,101460.0,0.19712201]
[1763048919908,0.04096482,101470.0,101460.0,0.19712201]
[1763048920115,0.04096482,101470.0,101450.0,0.28934957]
[1763048920323,0.04096482,101470.0,101460.0,0.19712201]
[1763048920527,0.13073482,101470.0,101450.0,0.19713957]
[1763048920742,0.002,101470.0,101460.0,0.8581824]
[1763048921187,0.003,101470.0,101460.0,0.8581824]
[1763048921399,0.001,101470.0,101450.0,0.19713957]
[1763048921600,0.28800328,101470.0,101440.0,0.74312931]
[1763048921810,0.31000328,101470.0,101450.0,0.19714014]
[1763048922031,0.30800328,101470.0,101440.0,0.32877892]
[1763048922659,0.30700328,101470.0,101440.0,0.32877892]
[1763048922893,0.0899,101500.0,101460.0,0.57870649]
[1763048923095,0.0899,101500.0,101460.0,0.35162201]
[1763048923096,0.002,101470.0,101460.0,0.35162201]
[1763048923294,0.02,101490.0,101470.0,0.33661529]
[1763048923474,0.03793685,101490.0,101480.0,0.19708316]
[1763048923970,0.03793685,101490.0,101470.0,0.84317568]
[1763048924216,0.04081,101480.0,101470.0,0.04731]
[1763048924417,0.35202331,101480.0,101450.0,0.85307825]
[1763048924590,0.002,101470.0,101450.0,0.85307825]
[1763048924795,0.022,101470.0,101450.0,0.85307825]
[1763048925057,0.02,101470.0,101450.0,0.85307825]
[1763048925223,0.02,101470.0,101460.0,0.19712201]
[1763048925767,0.21896496,101470.0,101450.0,0.25430786]
[1763048926060,0.02386,101470.0,101450.0,0.25430786]
[1763048926268,0.32920979,101470.0,101450.0,0.25430786]
[1763048926476,0.02,101460.0,101450.0,0.24445144]
[1763048927236,0.09528,101470.0,101460.0,0.19712201]
[1763048927237,0.002,101470.0,101460.0,0.19712201]
[1763048927659,0.07879336,101480.0,101470.0,0.19710259]
[1763048927864,0.002,101470.0,101460.0,0.19712201]
[1763048928071,0.01998362,101470.0,101460.0,0.19712201]
[1763048928279,0.01798362,101470.0,101460.0,0.19712201]
[1763048928478,0.0788022,101480.0,101470.0,0.19710259]
[1763048928757,0.07880406,101480.0,101460.0,0.35162201]
[1763048928969,0.27588811,101480.0,101460.0,0.25941201]
[1763048929173,0.07880406,101480.0,101470.0,0.19710259]
[1763048929378,0.001,101470.0,101460.0,0.35162201]
[1763048929786,0.01799406,101470.0,101460.0,0.8581824]
[1763048929955,0.01799406,101470.0,101460.0,0.06229]
[1763048930129,0.01799406,101470.0,101460.0,0.25941201]
[1763048930331,0.08280406,101480.0,101460.0,0.25941041]
[1763048930600,0.37401789,101480.0,101460.0,0.25941041]
[1763048930803,0.08280406,101480.0,101470.0,0.19710259]
[1763048931012,0.07880406,101480.0,101470.0,0.19710259]
[1763048931235,0.37002013,101480.0,101450.0,0.8530789]
[1763048931446,0.002,101470.0,101460.0,0.19712201]
[1763048931651,0.17295347,101480.0,101470.0,0.19710259]
[1763048931864,0.07882468,101480.0,101460.0,0.19712201]
[1763048932069,0.21710392,101470.0,101450.0,0.34651851]
[1763048932279,0.03801468,101470.0,101450.0,0.25430851]
[1763048932520,0.32924902,101470.0,101450.0,0.2444504]
[1763048932735,0.03801468,101470.0,101450.0,0.3366604]
[1763048932945,0.13214468,101470.0,101450.0,0.2444504]
[1763048933610,0.13314468,101470.0,101460.0,0.19712201]
[1763048933823,0.03901468,101470.0,101460.0,0.19712201]
[1763048934026,0.03901468,101470.0,101430.0,0.20703933]
[1763048934027,0.02,101450.0,101430.0,0.04731]
[1763048934446,0.0180202,101450.0,101440.0,0.19716088]
[1763048934666,0.0180202,101450.0,101440.0,0.76601127]
[1763048934885,0.06493,101460.0,101450.0,0.19714144]
[1763048935135,0.08295029,101460.0,101440.0,0.35166088]